bitfinex/quotes_ETHUSD_20241123
["timestamp","ask_amount","ask_price","bid_price","bid_amount"]
[1732402208978,0.818,3404.5,3403.7,3.0]
[1732402210077,0.818,3404.5,3402.9,1.40016191]
[1732402210280,0.818,3404.5,3402.9,0.7671]
[1732402210476,0.7705,3404.3,3403.7,3.0]
[1732402210708,0.7705,3404.3,3402.9,0.7671]
[1732402210891,2.82346678,3404.2,3402.9,0.7671]
[1732402211088,0.7705,3404.1,3402.8,0.59982595]
[1732402211617,0.7705,3403.7,3402.2,0.793]
[1732402212189,0.7705,3403.7,3401.7,0.793]
[1732402212524,0.7705,3403.7,3401.8,0.02938828]
[1732402212683,0.35939668,3403.6,3401.8,0.02938828]
[1732402212885,0.7705,3403.5,3401.8,0.02938828]
[1732402213184,0.7705,3403.5,3402.0,0.57163952]
[1732402218723,0.7705,3403.5,3403.1,0.01064991]
[1732402223729,1.16583635,3403.5,3403.1,0.01064991]
[1732402230036,0.8051,3403.4,3403.1,0.01064991]
[1732402231966,0.0604187,3403.3,3403.1,0.01064991]
[1732402232966,0.8051,3403.4,3403.1,0.01064991]
[1732402233135,0.0603888,3403.2,3403.1,3.01064991]
[1732402233328,0.8051,3403.4,3403.1,3.01064991]
[1732402233529,0.8051,3403.4,3403.1,0.01064991]
[1732402233753,0.06029297,3403.3,3403.1,3.01064991]
[1732402233929,0.06029297,3403.3,3403.1,0.01064991]
[1732402234330,0.06029297,3403.3,3403.1,3.01064991]
[1732402234752,0.06029297,3403.3,3403.1,0.01064991]
[1732402235439,0.8094,3403.2,3403.1,0.01064991]
[1732402235665,0.86967014,3403.2,3403.1,0.01064991]
[1732402251396,1.08071402,3403.2,3403.1,0.01064991]
[1732402257787,0.06027014,3403.2,3403.1,0.01064991]
[1732402257991,1.24076863,3403.5,3403.1,0.01064991]
[1732402258294,0.06046194,3403.2,3403.1,0.01064991]
[1732402258702,1.24076863,3403.5,3403.1,0.01064991]
[1732402259175,0.06052173,3403.4,3403.1,0.01064991]
[1732402260413,0.26618077,3403.4,3403.1,0.01064991]
[1732402262395,0.7553,3403.3,3403.1,0.01064991]
[1732402262568,0.81581005,3403.3,3403.1,0.01064991]
[1732402262790,1.24076863,3403.2,3403.1,0.01064991]
[1732402262982,1.24076863,3403.2,3401.8,0.2934]
[1732402262983,1.99606863,3403.2,3401.8,0.2934]
[1732402263217,1.24076863,3402.8,3402.0,0.7613]
[1732402263537,0.19960686,3402.7,3402.0,1.0547]
[1732402263765,0.2599375,3402.7,3402.0,1.0547]
[1732402267661,0.19960686,3402.7,3402.0,1.0547]
[1732402267899,0.06023698,3402.6,3402.0,1.0547]
[1732402268100,0.21029823,3402.6,3402.0,1.0547]
[1732402271222,0.7768,3402.5,3402.0,1.0547]
[1732402271716,0.06014677,3402.4,3402.0,1.0547]
[1732402274203,0.06014677,3402.4,3401.8,1.1168]
[1732402278921,0.7768,3402.5,3401.8,1.1168]
[1732402279140,2.01756863,3402.5,3401.7,0.2934]
[1732402279346,0.21676299,3402.4,3401.7,0.2934]
[1732402279635,0.27689964,3402.4,3401.7,0.2934]
[1732402280036,0.27689964,3402.4,3401.9,3.0]
[1732402280395,0.27689964,3402.4,3401.7,0.2934]
[1732402281049,0.27689964,3402.4,3401.9,3.0]
[1732402281343,0.24445295,3402.3,3401.9,3.0]
[1732402281537,0.24445295,3402.3,3401.7,0.2934]
[1732402281743,0.06005152,3402.2,3401.9,3.0]
[1732402281968,0.06005152,3402.2,3401.7,0.2934]
[1732402281969,0.7768,3402.1,3401.7,0.2934]
[1732402282244,0.05999168,3402.0,3401.9,3.0]
[1732402283192,0.05999168,3402.0,3401.7,0.2934]
[1732402283336,0.20775603,3401.9,3401.7,0.2934]
[1732402283736,0.05993184,3401.8,3401.7,0.2934]
[1732402284364,0.05993184,3401.8,3401.3,0.2934]
[1732402285384,0.7768,3401.7,3401.3,0.2934]
[1732402285534,0.28637682,3401.6,3400.8,1.41278588]
[1732402285735,0.28637682,3401.6,3400.9,0.2934]
[1732402287465,1.52714545,3401.6,3400.9,0.2934]
[1732402287673,0.7768,3401.5,3400.7,0.2934]
[1732402287886,1.24076863,3401.3,3400.7,0.2934]
[1732402288090,0.7768,3401.1,3400.7,0.2934]
[1732402288468,0.05387565,3401.0,3400.7,0.2934]
[1732402288698,0.05387565,3401.0,3400.4,0.2934]
[1732402290961,1.29464428,3401.0,3400.4,0.2934]
[1732402291180,1.52196439,3401.0,3400.4,0.2934]
[1732402291859,1.52196439,3401.0,3400.7,3.0]
[1732402292604,1.52196439,3401.0,3400.4,0.2434]
[1732402293106,1.52196439,3401.0,3400.7,3.0]
[1732402293596,1.52196439,3401.0,3400.4,0.2434]
[1732402294023,1.52196439,3401.0,3400.7,3.0]
[1732402294514,0.22987644,3400.9,3400.7,3.0]
[1732402294897,0.05018624,3400.8,3400.4,0.2434]
[1732402295106,0.05018624,3400.8,3400.7,3.0]
[1732402295484,0.05018624,3400.8,3400.4,0.2434]
[1732402295821,0.05018624,3400.8,3400.2,0.1934]
[1732402295993,0.27994937,3400.8,3400.2,0.1934]
[1732402296677,0.27994937,3400.8,3400.7,3.0]
[1732402296888,1.08494937,3400.8,3400.2,0.1934]
[1732402297108,0.2325718,3400.7,3400.2,0.1934]
[1732402297312,0.2325718,3400.7,3400.1,0.1934]
[1732402297514,0.05012226,3400.6,3400.1,0.1934]
[1732402298298,0.05012226,3400.6,3400.0,0.1934]
[1732402302025,0.05012226,3400.6,3400.3,0.1934]
[1732402302547,0.05012226,3400.6,3400.5,3.0]
[1732402302694,2.04576863,3401.1,3400.4,0.7693]
[1732402302895,0.05007723,3400.6,3400.5,3.0]
[1732402303110,2.25034549,3401.1,3400.4,0.7693]
[1732402303437,2.04576863,3401.1,3400.4,0.7693]
[1732402303638,0.05019699,3401.0,3400.5,3.0]
[1732402303837,0.05019699,3401.0,3400.4,0.7693]
[1732402305434,1.24076863,3400.8,3400.4,0.7693]
[1732402305932,0.05012048,3400.7,3400.5,3.0]
[1732402306308,1.24076863,3400.8,3400.2,0.1934]
[1732402306514,0.05009053,3400.6,3400.2,0.1934]
[1732402306818,1.24076863,3400.8,3400.5,3.0]
[1732402307022,1.24076863,3400.8,3400.2,0.1934]
[1732402307411,1.24076863,3400.8,3400.5,3.0]
[1732402308499,1.24076863,3400.8,3400.2,0.1934]
[1732402309050,1.24076863,3400.8,3400.5,3.0]
[1732402309744,1.24076863,3400.8,3400.2,0.1934]
[1732402309959,0.805,3400.7,3400.2,0.1934]
[1732402313554,0.805,3400.7,3400.5,3.0]
[1732402313965,0.805,3400.7,3400.2,0.1934]
[1732402314263,0.805,3400.7,3400.5,3.0]
[1732402314435,0.805,3400.7,3400.2,0.1934]
[1732402314624,0.805,3400.7,3400.5,3.0]
[1732402314824,0.805,3400.7,3400.2,0.1934]
[1732402315025,0.805,3400.7,3400.5,3.0]
[1732402315220,2.02966863,3400.8,3400.5,3.0]
[1732402315647,1.24076863,3400.8,3400.5,3.0]
[1732402316049,1.24076863,3400.8,3400.2,0.1934]
[1732402316460,1.24076863,3400.8,3400.5,3.0]
[1732402317564,1.24076863,3400.8,3400.2,0.1934]
[1732402317765,1.24076863,3400.8,3400.5,3.0]
[1732402318437,1.24076863,3400.8,3400.2,0.1934]
[1732402319175,1.24076863,3400.8,3400.5,3.0]
[1732402319699,1.24076863,3400.8,3400.2,0.1934]
[1732402319840,1.24076863,3400.8,3400.5,3.0]
[1732402320069,1.24076863,3400.8,3400.2,0.1934]
[1732402320482,0.05011843,3400.7,3400.2,0.22280724]
[1732402320667,0.05011843,3400.7,3400.3,0.7575]
[1732402320869,0.05011843,3400.7,3400.6,0.7575]
[1732402321061,1.24076863,3401.1,3400.6,0.7575]
[1732402321286,0.05011843,3400.7,3400.6,0.7575]
[1732402321499,1.24076863,3401.1,3400.6,0.7575]
[1732402321663,0.05011843,3400.7,3400.6,0.7575]
[1732402321861,1.24076863,3401.1,3400.6,0.7575]
[1732402322075,0.05011843,3400.7,3400.6,0.7575]
[1732402322290,1.24076863,3401.1,3400.6,0.7575]
[1732402322506,0.05011843,3400.7,3400.6,0.7575]
[1732402322688,1.24076863,3401.1,3400.6,0.7575]
[1732402323169,0.05020824,3401.0,3400.6,0.7575]
[1732402324075,0.05020824,3401.0,3400.6,3.7575]
[1732402324514,0.05020824,3401.0,3400.6,0.7575]
[1732402325105,0.05020824,3401.0,3400.6,3.7575]
[1732402326212,0.05020824,3401.0,3400.6,0.7575]
[1732402326729,0.05020824,3401.0,3400.6,3.7575]
[1732402327087,0.05020824,3401.0,3400.6,0.7575]
[1732402327304,0.05020824,3401.0,3400.6,4.40359322]
[1732402327530,0.05020824,3401.0,3400.6,1.40359322]
[1732402327708,1.24076863,3401.1,3400.6,1.40359322]
[1732402327880,0.05023665,3400.9,3400.6,1.40359322]
[1732402328081,0.05026659,3401.0,3400.6,1.40359322]
[1732402328281,0.05020671,3400.8,3400.6,1.40359322]
[1732402328520,1.24076863,3401.1,3400.6,1.40359322]
[1732402328721,0.05017267,3400.7,3400.6,1.40359322]
[1732402328905,1.24076863,3401.1,3400.6,1.40359322]
[1732402329396,0.05026249,3401.0,3400.6,1.40359322]
[1732402330423,0.05026249,3401.0,3400.7,0.1934]
[1732402339001,0.05026249,3401.0,3400.8,3.0]
[1732402339205,0.8097,3400.9,3400.8,3.0]
[1732402339399,1.06901759,3400.9,3400.4,0.1434]
[1732402339740,0.85894448,3400.9,3400.8,3.0]
[1732402340107,0.85894448,3400.9,3400.4,0.78027626]
[1732402342849,0.04924448,3400.9,3400.5,0.9063]
[1732402343215,1.24076863,3401.1,3400.5,0.9063]
[1732402343553,0.04927442,3401.0,3400.5,0.1434]
[1732402343703,0.04927442,3401.0,3400.4,0.1434]
[1732402347344,0.8097,3400.9,3400.8,3.0]
[1732402347512,0.8097,3400.9,3400.4,0.1434]
[1732402347717,0.85894448,3400.9,3400.4,0.1434]
[1732402348660,0.85894448,3400.9,3400.3,0.5735238]
[1732402348661,1.24076863,3400.8,3400.3,0.5735238]
[1732402348956,1.24076863,3400.5,3400.1,0.2934]
[1732402349320,0.0490774,3400.4,3400.1,0.2934]
[1732402350017,0.0490774,3400.4,3399.9,0.2934]
[1732402351834,0.7832,3400.6,3400.5,3.0]
[1732402352041,0.83231784,3400.6,3399.9,0.2934]
[1732402363039,0.04911784,3400.6,3400.0,1.0809]
[1732402363370,1.24076863,3400.8,3400.0,1.0809]
[1732402363529,0.0490664,3400.5,3400.0,1.0809]
[1732402363722,1.24076863,3400.8,3400.0,1.0809]
[1732402367279,1.24076863,3400.8,3400.0,1.72263911]
[1732402367572,0.7989,3400.7,3400.0,1.72263911]
[1732402368649,0.79889975,3400.7,3400.0,1.72263911]
[1732402369458,0.79889975,3400.7,3400.0,0.93513911]
[1732402369655,0.04910964,3400.6,3400.0,0.93513911]
[1732402387838,0.8119,3400.5,3400.0,0.93513911]
[1732402388198,0.04855462,3400.4,3400.0,0.93513911]
[1732402405407,0.04855462,3400.4,3400.0,0.96454781]
[1732402406182,0.04855462,3400.4,3400.0,0.93513911]
[1732402407493,0.04855462,3400.4,3400.2,3.0]
[1732402408028,0.04855462,3400.4,3400.0,0.93513911]
[1732402408700,0.04855462,3400.4,3400.0,0.9645477]
[1732402411719,0.04855462,3400.4,3400.0,0.93513911]
[1732402412946,0.04855462,3400.4,3400.1,0.8158]
[1732402413084,0.0461279,3400.3,3400.1,1.1092]
[1732402413420,0.7765,3400.8,3400.1,1.1092]
[1732402413626,0.04609795,3400.2,3400.1,1.1092]
[1732402413823,0.7765,3400.8,3400.1,1.1092]
[1732402414255,0.04624768,3400.7,3400.1,1.1092]
[1732402419756,0.04624768,3400.7,3400.4,0.59574717]
[1732402419915,0.7765,3400.8,3400.4,0.59574717]
[1732402420117,0.04533508,3400.7,3400.4,0.59574717]
[1732402420354,0.7765,3400.8,3400.4,0.59574717]
[1732402420656,0.04530513,3400.6,3400.4,0.59574717]
[1732402420868,0.7765,3400.8,3400.4,0.59574717]
[1732402421311,0.04533508,3400.7,3400.4,0.59574717]
[1732402421512,0.7765,3400.8,3400.6,3.0]
[1732402421717,0.04533508,3400.7,3400.5,0.2934]
[1732402422018,0.7765,3400.8,3400.6,3.0]
[1732402422725,0.7765,3400.8,3400.5,0.2934]
[1732402423133,0.7897,3401.1,3400.8,3.0]
[1732402423365,0.7897,3401.4,3400.5,1.15170432]
[1732402423652,0.7897,3401.4,3400.5,1.75768606]
[1732402424017,0.7897,3401.4,3400.6,0.02940322]
[1732402424469,2.03046863,3401.6,3400.7,0.2934]
[1732402424751,2.03046863,3401.6,3400.8,1.15170112]
[1732402424917,0.7897,3402.1,3401.0,0.2934]
[1732402425116,0.7897,3402.1,3401.3,0.2934]
[1732402425320,0.04290543,3402.0,3401.4,0.02939432]
[1732402425553,0.04290543,3402.0,3401.3,0.2934]
[1732402425738,0.04290543,3402.0,3401.4,0.02939457]
[1732402425947,0.7897,3402.1,3401.7,3.0]
[1732402426448,1.24076863,3402.2,3401.6,0.2934]
[1732402427136,0.7897,3402.4,3401.6,0.32279344]
[1732402427341,0.04300446,3402.1,3401.6,0.32279344]
[1732402427546,0.7897,3402.4,3401.6,0.32279344]
[1732402427754,0.04297454,3402.0,3401.7,1.1223]
[1732402427954,1.24076863,3402.5,3401.8,0.02939319]
[1732402428160,0.04295906,3401.9,3401.8,0.02939319]
[1732402428342,1.24076863,3402.5,3401.8,0.02939319]
[1732402428556,0.04295906,3401.9,3401.8,0.02939319]
[1732402428733,1.24076863,3402.5,3401.8,0.02939319]
[1732402428933,0.04295906,3401.9,3401.8,0.02939319]
[1732402429139,1.24076863,3402.5,3401.8,0.02939319]
[1732402429370,0.04296834,3401.9,3401.8,0.02939319]
[1732402429635,1.24076863,3402.5,3401.8,0.02939319]
[1732402429636,1.24076863,3402.5,3401.9,0.2934]
[1732402430543,1.24076863,3402.5,3401.9,3.2934]
[1732402430742,1.24076863,3402.5,3402.0,0.2934]
[1732402431851,1.24076863,3402.5,3401.8,0.2934]
[1732402433244,1.24076863,3402.5,3401.9,0.02939116]
[1732402433646,1.24076863,3402.5,3401.8,0.2934]
[1732402433844,1.24076863,3402.5,3401.9,0.02939024]
[1732402434292,1.24076863,3402.5,3401.8,0.2934]
[1732402434460,1.24076863,3402.5,3401.9,0.02939022]
[1732402434639,0.7897,3402.6,3402.1,0.2934]
[1732402434843,1.24076863,3402.8,3402.2,0.8132]
[1732402435044,0.8283,3402.9,3402.3,0.2934]
[1732402435283,0.8283,3402.9,3402.3,0.32278726]
[1732402435472,0.04292714,3402.8,3402.3,0.2934]
[1732402435782,0.8283,3402.9,3402.4,0.88643821]
[1732402436086,0.04290136,3402.7,3402.4,0.88643821]
[1732402436391,0.04298799,3402.6,3402.4,0.88643821]
[1732402436575,0.8283,3402.9,3402.4,0.88643821]
[1732402436762,0.04295808,3402.5,3402.4,0.88643821]
[1732402436967,0.8283,3402.5,3402.4,0.88643821]
[1732402437161,0.87125808,3402.5,3402.4,0.88643821]
[1732402437567,2.11202671,3402.5,3402.4,0.88643821]
[1732402438647,2.11202671,3402.5,3402.4,1.536227]
[1732402438902,0.04295808,3402.5,3402.4,1.536227]
[1732402439395,0.04297251,3402.5,3402.4,1.536227]
[1732402439601,2.06906863,3402.7,3402.4,1.536227]
[1732402439747,0.04297251,3402.5,3402.4,1.536227]
[1732402439947,2.06906863,3402.7,3402.4,1.536227]
[1732402440146,0.04297251,3402.5,3402.4,1.536227]
[1732402440389,2.06906863,3402.7,3402.4,1.536227]
[1732402440590,0.04297251,3402.5,3402.4,1.536227]
[1732402440756,2.06906863,3402.7,3402.4,1.536227]
[1732402441073,0.04297251,3402.5,3402.4,1.536227]
[1732402441591,2.06906863,3402.7,3402.4,1.536227]
[1732402441801,0.04297251,3402.5,3402.4,1.536227]
[1732402441955,2.06906863,3402.7,3402.4,1.536227]
[1732402442155,0.04297251,3402.5,3402.4,1.536227]
[1732402442355,2.06906863,3402.7,3402.4,1.536227]
[1732402442592,0.04297251,3402.5,3402.4,1.536227]
[1732402442867,0.8283,3402.7,3402.4,1.536227]
[1732402443062,0.04297251,3402.5,3402.4,1.536227]
[1732402443281,1.24076863,3402.8,3402.4,1.536227]
[1732402443884,0.04303233,3402.7,3402.4,1.536227]
[1732402444255,1.24076863,3402.8,3402.4,1.536227]
[1732402444451,0.04300242,3402.6,3402.4,1.536227]
[1732402444657,1.24076863,3402.8,3402.4,1.536227]
[1732402444880,0.04297251,3402.5,3402.4,1.536227]
[1732402445596,1.24076863,3402.9,3402.4,1.536227]
[1732402445756,0.04297251,3402.5,3402.4,1.536227]
[1732402445953,1.24076863,3402.9,3402.4,1.536227]
[1732402446295,0.04297251,3402.5,3402.4,1.536227]
[1732402446471,1.24076863,3402.8,3402.4,1.536227]
[1732402446655,0.04297251,3402.5,3402.4,1.536227]
[1732402446852,1.24076863,3402.8,3402.4,1.536227]
[1732402447064,0.04297251,3402.5,3402.4,1.536227]
[1732402447288,1.24076863,3402.8,3402.4,1.536227]
[1732402447487,0.04297251,3402.5,3402.4,1.536227]
[1732402447997,1.24076863,3402.8,3402.4,1.536227]
[1732402448293,0.04297251,3402.5,3402.4,1.536227]
[1732402448796,1.24076863,3402.8,3402.4,1.536227]
[1732402449095,0.04297251,3402.5,3402.4,1.536227]
[1732402449297,1.24076863,3402.8,3402.4,1.536227]
[1732402449462,0.04301788,3402.5,3402.4,1.536227]
[1732402449667,1.24076863,3402.8,3402.4,1.536227]
[1732402449880,0.04301788,3402.5,3402.4,1.536227]
[1732402450059,1.24076863,3402.8,3402.4,4.536227]
[1732402450391,1.24076863,3402.8,3402.4,1.536227]
[1732402450591,0.0430777,3402.7,3402.4,1.536227]
[1732402450788,1.24076863,3402.8,3402.4,1.536227]
[1732402451606,0.0430777,3402.7,3402.4,1.536227]
[1732402451807,1.24076863,3402.8,3402.4,1.536227]
[1732402452016,0.04304779,3402.6,3402.4,1.536227]
[1732402452224,1.24076863,3402.8,3402.4,1.536227]
[1732402452387,0.04301788,3402.5,3402.4,1.536227]
[1732402452592,2.06906863,3403.0,3402.4,1.536227]
[1732402452911,0.04051078,3402.5,3402.4,1.536227]
[1732402453121,2.06906863,3403.0,3402.4,1.536227]
[1732402453288,0.04051078,3402.5,3402.4,1.536227]
[1732402453477,2.06906863,3403.0,3402.4,1.536227]
[1732402453678,0.04051078,3402.5,3402.4,1.536227]
[1732402453874,2.06906863,3403.0,3402.4,1.536227]
[1732402454077,0.04051078,3402.5,3402.4,1.536227]
[1732402454316,2.06906863,3403.0,3402.4,1.536227]
[1732402454808,0.04063041,3402.9,3402.4,1.536227]
[1732402455360,0.8165,3403.9,3402.6,1.24076863]
[1732402455533,0.8165,3403.9,3402.9,0.2934]
[1732402455844,2.05726863,3404.1,3403.3,0.2934]
[1732402456123,2.05726863,3404.1,3403.4,0.02937807]
[1732402456776,2.05726863,3404.1,3403.3,0.2934]
[1732402456981,2.05726863,3404.1,3403.3,0.3227783]
[1732402457400,0.8165,3404.1,3403.3,0.2934]
[1732402458595,0.8165,3404.1,3403.7,0.2934]
[1732402459909,2.05726863,3404.4,3403.7,1.0871]
[1732402462808,0.03578867,3404.3,3403.7,1.0871]
[1732402464017,0.03578867,3404.3,3403.7,1.72337536]
[1732402465306,0.8165,3406.0,3404.0,0.7937]
[1732402465507,0.03334092,3404.2,3404.1,1.55180513]
[1732402465708,2.05726863,3405.4,3404.1,1.55180513]
[1732402465909,1.24076863,3405.1,3404.1,1.55180513]
[1732402466438,0.03267393,3405.0,3404.1,1.55180513]
[1732402466601,0.03267393,3405.0,3404.3,0.2934]
[1732402467515,1.24076863,3405.2,3404.2,0.2934]
[1732402467694,0.03264406,3404.9,3404.2,0.2934]
[1732402467898,0.03264406,3404.9,3404.1,1.25840513]
[1732402467899,0.0327038,3405.1,3404.6,0.86805335]
[1732402468106,0.0326142,3404.8,3404.6,0.86805335]
[1732402468341,1.24076863,3405.2,3405.1,3.0]
[1732402468546,1.24076863,3405.2,3404.6,0.86805335]
[1732402470405,1.24076863,3404.9,3404.6,0.86805335]
[1732402472842,0.03271616,3404.8,3404.6,1.52314828]
[1732402473140,0.03271616,3404.8,3404.6,0.86805335]
[1732402474010,0.03271616,3404.8,3404.6,0.57495335]
[1732402475151,0.03271616,3404.8,3404.7,1.1035]
[1732402475515,1.24076863,3405.3,3404.7,1.1035]
[1732402475715,0.03164529,3404.8,3404.7,1.1035]
[1732402475936,1.24076863,3405.3,3404.7,1.1035]
[1732402476142,0.03164529,3404.8,3404.7,1.1035]
[1732402476347,1.24076863,3405.3,3404.7,1.1035]
[1732402476515,0.03164529,3404.8,3404.7,1.1035]
[1732402476714,1.19076863,3405.3,3404.7,1.1035]
[1732402476952,0.03164529,3404.8,3404.7,1.1035]
[1732402477133,1.19076863,3405.3,3404.7,1.1035]
[1732402477336,0.0316711,3404.8,3404.7,1.1035]
[1732402477534,1.19076863,3405.3,3404.7,1.1035]
[1732402477738,0.0316711,3404.8,3404.7,1.1035]
[1732402477952,1.19076863,3405.3,3404.7,1.1035]
[1732402478174,0.0316711,3404.8,3404.7,1.1035]
[1732402478751,1.19076863,3405.3,3404.7,1.1035]
[1732402478950,0.0316711,3404.8,3404.7,1.1035]
[1732402479150,1.19076863,3405.3,3404.7,1.1035]
[1732402479659,0.03179057,3405.2,3404.7,1.1035]
[1732402484231,0.03179057,3405.2,3404.7,0.2934]
[1732402484432,0.03179057,3405.2,3404.9,0.2934]
[1732402485453,0.03179057,3405.2,3405.0,3.0]
[1732402485833,0.7919,3405.1,3405.0,3.0]
[1732402486034,0.82263165,3405.1,3404.7,0.2934]
[1732402486561,0.03073165,3405.1,3405.0,3.0]
[1732402486930,1.19076863,3405.3,3404.7,0.2934]
[1732402487142,0.03073165,3405.1,3405.0,3.0]
[1732402487632,1.19076863,3405.3,3404.7,0.2934]
[1732402487854,0.03073165,3405.1,3405.0,3.0]
[1732402488067,1.19076863,3405.3,3404.7,0.2934]
[1732402488365,0.03073165,3405.1,3405.0,3.0]
[1732402488528,0.03076152,3405.2,3404.7,0.92654142]
[1732402488724,0.03073165,3405.1,3404.7,0.92654142]
[1732402489161,1.19076863,3405.3,3404.7,0.92654142]
[1732402489359,0.02968453,3405.0,3404.7,0.92654142]
[1732402489572,1.19076863,3405.3,3404.7,0.92654142]
[1732402490069,0.02974426,3405.2,3404.7,0.92654142]
[1732402490946,1.19076863,3405.3,3404.7,0.92654142]
[1732402491266,0.02974426,3405.2,3404.9,0.2934]
[1732402491589,0.7919,3405.4,3404.9,0.2934]
[1732402492071,0.02977412,3405.3,3404.9,0.2934]
[1732402492243,0.02977412,3405.3,3404.7,0.2934]
[1732402492438,0.02977412,3405.3,3404.8,0.02936549]
[1732402492923,0.02977412,3405.3,3404.9,0.2934]
[1732402493255,1.24076863,3405.5,3404.9,0.2934]
[1732402493974,0.02980398,3405.4,3404.9,0.2934]
[1732402494383,0.8185,3405.6,3404.9,0.2934]
[1732402494743,0.0289119,3405.5,3404.9,0.2934]
[1732402496459,2.05926863,3405.9,3404.9,0.2934]
[1732402496661,0.02888205,3405.4,3404.9,0.2934]
[1732402497000,2.05926863,3405.9,3404.9,0.2934]
[1732402497357,0.02900147,3405.8,3404.9,0.2934]
[1732402498999,0.02900147,3405.8,3405.2,0.2934]
[1732402505689,0.02900147,3405.8,3405.3,0.02936058]
[1732402506125,0.02900147,3405.8,3405.2,0.2934]
[1732402506439,0.02900147,3405.8,3405.3,0.02936058]
[1732402506603,0.02900147,3405.8,3405.2,0.2934]
[1732402506925,0.02900147,3405.8,3405.2,0.32276058]
[1732402507306,0.02900147,3405.8,3405.3,0.8719165]
[1732402507807,0.02900147,3405.8,3405.4,0.02936057]
[1732402509252,0.02900147,3405.8,3405.3,0.8719165]
[1732402510219,0.8185,3405.9,3405.3,0.8719165]
[1732402510220,0.8185,3405.9,3405.4,0.02936058]
[1732402510414,0.02851018,3405.7,3405.3,0.8719165]
[1732402510720,0.8185,3405.9,3405.4,0.02936058]
[1732402511053,0.8185,3405.9,3405.3,0.90127705]
[1732402511255,0.02854004,3405.8,3405.3,0.8719165]
[1732402511451,0.02854004,3405.8,3405.4,0.02936057]
[1732402511920,0.02854004,3405.8,3405.3,0.8719165]
[1732402512471,0.02854004,3405.8,3405.4,3.0]
[1732402512614,0.02854004,3405.8,3405.4,0.02936056]
[1732402512814,0.02854004,3405.8,3405.3,1.52408413]
[1732402513050,0.02854004,3405.8,3405.4,0.02936056]
[1732402513232,0.02854004,3405.8,3405.3,0.8719165]
[1732402514244,0.02854004,3405.8,3405.4,0.02936056]
[1732402514446,0.7841,3405.7,3405.3,3.0]
[1732402514655,0.81261018,3405.7,3405.3,0.2931]
[1732402515154,0.81261018,3405.7,3405.3,3.2931]
[1732402515614,0.81261018,3405.7,3405.3,0.2931]
[1732402516399,0.7841,3405.7,3405.3,0.2931]
[1732402516692,0.02850317,3405.6,3405.3,0.2931]
[1732402517094,0.7841,3405.5,3405.2,0.2931]
[1732402517295,0.81257331,3405.5,3405.2,0.2931]
[1732402519077,0.81257331,3405.5,3405.2,3.2931]
[1732402519472,0.81257331,3405.5,3405.2,0.2931]
[1732402520061,0.81257331,3405.5,3405.3,3.2931]
[1732402520260,0.7841,3405.5,3405.3,0.2931]
[1732402520462,0.02844345,3405.4,3405.3,3.2931]
[1732402521155,0.7841,3405.3,3404.6,1.52838467]
[1732402521363,0.7841,3405.3,3404.6,0.88765357]
[1732402521364,2.02486863,3405.3,3404.6,0.88765357]
[1732402521671,0.02838373,3405.2,3404.6,0.88765357]
[1732402521876,1.24076863,3405.0,3404.6,0.2931]
[1732402522270,0.02826817,3404.9,3404.6,0.2931]
[1732402522602,0.7841,3404.8,3404.5,0.64498032]
[1732402522772,1.24076863,3404.7,3404.1,0.2931]
[1732402522974,0.7841,3404.3,3404.1,0.2931]
[1732402523193,0.0280414,3404.2,3404.1,0.2931]
[1732402523506,2.02486863,3404.3,3404.1,0.2931]
[1732402523707,0.02799257,3404.2,3404.1,0.2931]
[1732402523889,2.02486863,3404.3,3403.4,0.2931]
[1732402524095,0.02799257,3404.2,3403.6,0.2931]
[1732402524303,1.24076863,3404.0,3403.6,0.2931]
[1732402524615,1.24076863,3404.0,3403.1,0.2931]
[1732402524820,0.02790292,3403.9,3403.1,0.2931]
[1732402525293,1.24076863,3403.7,3403.1,0.57955646]
[1732402525690,0.7841,3403.3,3402.6,0.43278376]
[1732402525896,0.7841,3403.3,3402.5,0.7801]
[1732402526192,1.24076863,3403.1,3402.5,0.59256177]
[1732402526508,0.7841,3402.9,3402.1,0.7801]
[1732402526882,0.03147576,3402.8,3402.1,0.80948866]
[1732402527082,0.03147576,3402.8,3402.4,0.59139012]
[1732402527897,0.03147576,3402.8,3402.1,0.80948866]
[1732402528619,0.03147576,3402.8,3402.1,0.7801]
[1732402528979,0.7841,3402.9,3402.1,0.7801]
[1732402529807,0.7841,3402.9,3402.4,0.58648894]
[1732402530118,0.7841,3402.9,3402.1,0.7801]
[1732402530314,0.7841,3402.9,3402.1,0.80948865]
[1732402530517,0.7841,3402.9,3402.1,0.7801]
[1732402530755,0.03409874,3402.8,3402.3,0.59944257]
[1732402531252,0.7908,3402.7,3402.0,0.58813012]
[1732402531456,0.82475868,3402.7,3402.0,0.58813012]
[1732402532117,1.24076863,3403.1,3402.1,0.7989]
[1732402532350,0.03900762,3402.6,3402.2,0.02938537]
[1732402532557,1.24076863,3403.1,3402.2,0.02938537]
[1732402532726,0.03896432,3402.5,3402.2,0.02938537]
[1732402532931,1.24076863,3403.1,3402.2,0.02938537]
[1732402534464,0.03918862,3403.0,3402.2,0.02938537]
[1732402534763,1.24076863,3403.1,3402.2,0.02938537]
[1732402534942,3.0,3404.5,3402.2,0.02938537]
[1732402535148,0.64947645,3405.8,3402.2,0.02938537]
[1732402535149,1.24076863,3403.2,3402.7,3.0]
[1732402535658,0.85353347,3403.1,3402.3,0.7694]
[1732402536256,0.85353347,3403.1,3402.7,3.0]
[1732402536425,0.85353347,3403.1,3402.8,0.02938453]
[1732402536750,0.03923347,3403.1,3402.6,0.02938453]
[1732402536951,0.03923347,3403.1,3403.0,3.0]
[1732402537848,0.03923347,3403.1,3402.5,0.58604514]
[1732402538645,2.05506863,3403.4,3402.5,0.61542923]
[1732402538867,0.03566572,3403.0,3402.5,0.61542923]
[1732402539164,2.05506863,3403.4,3402.5,0.61542923]
[1732402539663,0.03578803,3403.3,3402.6,0.2931]
[1732402540825,0.8143,3403.4,3402.6,0.2931]
[1732402541026,0.03578803,3403.3,3402.6,0.2931]
[1732402541889,0.03578803,3403.3,3402.6,1.15018408]
[1732402542060,0.03578803,3403.3,3402.8,0.2931]
[1732402543172,0.03578803,3403.3,3402.6,0.2931]
[1732402545365,0.7585,3403.2,3402.6,0.2931]
[1732402545978,0.7585,3403.2,3402.5,0.58604514]